fUST/lending_fUST_20240430
["ID","MTS","AMOUNT","RATE_DAILY","PERIOD"]
[324936451,1714440639245,-2489.59843559,0.00027462,2]
[324936452,1714440639255,-620.0,0.00027494,2]
[324936453,1714440639264,-192.71302251,0.00027529,2]
[324936454,1714440639275,-2806.69914,0.00027629,2]
[324936455,1714440639285,-111715.27113609,0.0002763,2]
[324936456,1714440639295,-2489.59843559,0.000277,2]
[324936457,1714440639306,-159.91014089,0.00027742,2]
[324936458,1714440639316,-152.73426914,0.00027781,2]
[324936459,1714440639325,-155.02713687,0.00027818,2]
[324936460,1714440639334,-152.73426914,0.00027842,2]
[324936461,1714440639344,-44444.0,0.000279,3]
[324936462,1714440639354,-2489.59843559,0.00027938,2]
[324936463,1714440639363,-34523.24031559,0.00028,7]
[324936464,1714440639372,-220.92131871,0.00028,2]
[324936465,1714440639381,-248570.24840818,0.00028,4]
[324936578,1714441635095,-1167.33093555,0.0001818,2]
[324936624,1714441832650,-639.93781919,0.0001818,2]
[324936851,1714441838949,-783.12312926,0.0001818,2]
[324936853,1714441838958,-569.95673451,0.00018181,2]
[324936855,1714441838970,-377.35956123,0.00018181,2]
[324936856,1714441838981,-1425.16569046,0.00018181,2]
[324936857,1714441838990,-168.142987,0.00018181,2]
[324936858,1714441838999,-150.0,0.000189,2]
[324936859,1714441839009,-300.0,0.00019998,2]
[324936860,1714441839018,-12731.16141702,0.00019999,2]
[324936861,1714441839027,-625.777195,0.0002,2]
[324936862,1714441839037,-10026.97714263,0.00020913,2]
[324936863,1714441839046,-596.2482609,0.00021885,2]
[324936864,1714441839056,-160.811514,0.00021985,2]
[324936865,1714441839065,-165.474455,0.00022466,2]
[324936866,1714441839075,-596.24826085,0.00024914,2]
[324936867,1714441839084,-189.4266536,0.00025,2]
[324936868,1714441839094,-200.0,0.00025,10]
[324936869,1714441839103,-154.78330338,0.00025,2]
[324936870,1714441839112,-154.78330338,0.00025,2]
[324936871,1714441839121,-153.59053725,0.00025016,2]
[324936872,1714441839131,-473.98113825,0.00025195,2]
[324936873,1714441839140,-155.18604248,0.00025263,2]
[324936875,1714441839149,-158.18363337,0.00025284,2]
[324936876,1714441839158,-152.78694797,0.00025385,2]
[324936877,1714441839167,-473.98113825,0.00025478,2]
[324936878,1714441839176,-153.59053725,0.00025507,2]
[324936879,1714441839187,-153.93008244,0.00025563,2]
[324936880,1714441839197,-153.93008244,0.00025763,2]
[324936881,1714441839206,-473.98113825,0.00025772,2]
[324936882,1714441839216,-153.93008244,0.00025803,2]
[324936883,1714441839226,-153.59053725,0.00025881,2]
[324936884,1714441839236,-153.59053725,0.00025909,2]
[324936885,1714441839245,-473.98113825,0.00026029,2]
[324936886,1714441839255,-152.78694797,0.00026037,2]
[324936887,1714441839264,-155.18604248,0.00026112,2]
[324936888,1714441839274,-155.18604248,0.00026683,2]
[324936889,1714441839283,-153.59053725,0.00026699,2]
[324936890,1714441839292,-5000.0,0.000269,2]
[324936891,1714441839302,-150.0,0.00026932,3]
[324936892,1714441839311,-8529.21181525,0.00027,2]
[324936893,1714441839320,-153.59053725,0.00027176,2]
[324936894,1714441839329,-152.78694797,0.00027206,2]
[324936895,1714441839339,-166.666666,0.00027397,2]
[324936896,1714441839348,-197.55260181,0.000274,2]
[324936897,1714441839358,-153.59053725,0.0002747,2]
[324936898,1714441839367,-152.78694797,0.00027632,2]
[324936899,1714441839377,-152.78694797,0.00027633,2]
[324936900,1714441839386,-153.59053725,0.0002767,2]
[324936901,1714441839395,-153.93008244,0.0002777,2]
[324936902,1714441839405,-152.78694797,0.00027846,2]
[324936903,1714441839414,-997.31423877,0.000279,2]
[324936904,1714441839423,-158.18363337,0.00027917,2]
[324936905,1714441839434,-596.24826085,0.00027942,3]
[324936906,1714441839447,-473.98113825,0.00027972,2]
[324936907,1714441839457,-21032.45,0.0002798,3]
[324936908,1714441839469,-12171.56,0.0002798,3]
[324936909,1714441839479,-605.56771519,0.00027988,2]
[324936910,1714441839488,-156.38107824,0.00027989,2]
[324936911,1714441839498,-17527.05,0.0002799,3]
[324936912,1714441839509,-14605.87,0.0002799,3]
[324936913,1714441839518,-1801.58423865,0.00027998,2]
[324936914,1714441839527,-695.61769569,0.00027998,2]
[324936915,1714441839537,-161295.21057332,0.00028,4]
[324936916,1714441839547,-424.06118896,0.00028,2]
[324936917,1714441839557,-1564.25196696,0.00028,2]
[324936918,1714441839567,-224.46080318,0.00028,2]
[324936919,1714441839576,-756.81853789,0.00028,2]
[324936920,1714441839585,-473.98113825,0.00028015,2]
[324936921,1714441839595,-166.666666,0.00028038,2]
[324936922,1714441839604,-155.18604248,0.00028144,2]
[324936923,1714441839614,-2518.6711,0.00028169,30]
[324936924,1714441839623,-152.78694797,0.00028201,2]
[324936925,1714441839633,-150.0,0.00028258,2]
[324936926,1714441839643,-152.78694797,0.00028304,2]
[324936927,1714441839652,-473.98113825,0.00028327,2]
[324936928,1714441839662,-473.98113825,0.00028397,2]
[324936929,1714441839671,-391.510714,0.00028493,2]
[324936930,1714441839681,-329.934264,0.00028493,2]
[324936931,1714441839690,-165.474455,0.00028493,2]
[324936932,1714441839699,-166.666666,0.00028679,2]
[324936933,1714441839709,-153.93008244,0.00028868,2]
[324936934,1714441839718,-620.0,0.00028869,2]
[324936935,1714441839728,-150.0,0.00028892,3]
[324936936,1714441839737,-473.98113825,0.00028935,2]
[324936937,1714441839747,-1520.518128,0.000291,7]
[324936938,1714441839756,-150.0,0.00029258,2]
[324936939,1714441839766,-473.98113825,0.00029307,2]
[324936940,1714441839775,-166.666666,0.00029321,2]
[324936941,1714441839785,-1000.0,0.000296,7]
[324936942,1714441839794,-158.18363337,0.00029838,2]
[324936943,1714441839804,-166.666666,0.00029962,2]
[324936944,1714441839814,-154.78330338,0.0003,4]
[324936945,1714441839823,-154.78330338,0.0003,4]
[324936946,1714441839833,-154.78330338,0.0003,4]
[324936947,1714441839843,-201.0,0.0003,2]
[324936948,1714441839852,-1000.0,0.000301,7]
[324936949,1714441839862,-588.0,0.000301,2]
[324936950,1714441839871,-158.18363337,0.00030134,7]
[324936951,1714441839881,-150.0,0.00030258,2]
[324936952,1714441839890,-155.18604248,0.00030287,7]
[324936953,1714441839899,-151.0,0.00030327,2]
[324936954,1714441839909,-997.31423875,0.00030489,2]
[324936955,1714441839918,-1000.0,0.000306,7]
[324936956,1714441839928,-166.666666,0.00030603,2]
[324936957,1714441839938,-200.0,0.00030727,120]
[324936958,1714441839947,-152.78694797,0.00030863,7]
[324936959,1714441839957,-473.98113825,0.00030875,7]
[324936960,1714441839966,-596.24826085,0.00030971,5]
[324936961,1714441839975,-286.72543224,0.00031,2]
[324936962,1714441839985,-158.18363337,0.00031024,7]
[324936963,1714441839995,-1000.0,0.000311,7]
[324936964,1714441840004,-153.59053725,0.00031236,7]
[324936965,1714441840013,-150.0,0.00031258,2]
[324936966,1714441840023,-200.0,0.00031331,120]
[324936967,1714441840033,-153.59053725,0.00031366,7]
[324936968,1714441840042,-158.0,0.0003142,16]
[324936969,1714441840052,-153.59053725,0.00031547,7]
[324936970,1714441840061,-1000.0,0.000316,7]
[324936971,1714441840071,-473.98113825,0.00031699,7]
[324936972,1714441840080,-473.98113825,0.00031723,7]
[324936973,1714441840090,-29680.22330256,0.00031809,7]
[324936980,1714441840404,-8.32973067,0.00031809,7]
[324936981,1714441840414,-534.43373795,0.00031809,2]
[324937001,1714441843090,-1006.3576,0.00019365,2]
[324937002,1714441843102,-2167.2631726,0.00019365,2]
[324937003,1714441843111,-1948.86758763,0.00031809,2]
[324937005,1714441843121,-9065.98893609,0.00031809,2]
[324937036,1714441846478,-9446.45693766,0.00031799,3]
[324937039,1714442082299,4038.4391187,0.00024,60]
[324937041,1714442839112,-654.29620684,0.00014727,2]
[324937042,1714442839161,-1898.33234586,0.00014727,2]
[324937048,1714442955081,-254.9250472,0.00014727,2]
[324937049,1714442955107,-391.92360255,0.00014727,2]
[324937129,1714443039438,-180.1118226,0.00019734,2]
[324937132,1714443039448,-154.90633605,0.00019866,2]
[324937135,1714443039458,-160.811514,0.00020119,2]
[324937137,1714443039468,-217.50783152,0.00020812,2]
[324937139,1714443039477,-154.09193724,0.00020912,2]
[324937141,1714443039489,-1646.63784151,0.00020912,2]
[324937144,1714443039498,-234.89117209,0.00020913,2]
[324937146,1714443039508,-300.0,0.00020913,2]
[324937148,1714443039517,-177.837403,0.00022466,2]
[324937150,1714443039526,-352.359642,0.00022466,2]
[324937152,1714443039535,-420.0,0.00023004,2]
[324937154,1714443039544,-1564.25196696,0.00024,2]
[324937156,1714443039553,-693.45686249,0.00024,2]
[324937158,1714443039562,-154.78330338,0.00025,2]
[324937159,1714443039572,-154.78330338,0.00025,2]
[324937162,1714443039581,-435.0,0.00025304,2]
[324937164,1714443039590,-427.69020912,0.00025375,2]
[324937166,1714443039599,-427.69020912,0.00025453,2]
[324937167,1714443039608,-155.17015192,0.00025537,2]
[324937170,1714443039618,-155.17015192,0.00025607,2]
[324937172,1714443039627,-154.16504668,0.00025706,2]
[324937173,1714443039635,-158.18363338,0.00025733,2]
[324937176,1714443039645,-224.44108597,0.00025802,2]
[324937177,1714443039654,-623.71636402,0.00026027,2]
[324937180,1714443039666,-158.18363338,0.00026058,2]
[324937182,1714443039674,-427.69020912,0.00026445,2]
[324937184,1714443039684,-427.69020912,0.00026669,2]
[324937186,1714443039692,-152.78694797,0.0002674,2]
[324937187,1714443039701,-427.69020912,0.00026792,2]
[324937189,1714443039710,-5000.0,0.000269,2]
[324937191,1714443039722,-153.93008245,0.00026933,2]
[324937193,1714443039731,-567.68946934,0.00026961,3]
[324937195,1714443039740,-8529.21181525,0.00027,2]
[324937197,1714443039749,-150.0,0.00027061,3]
[324937199,1714443039758,-158.18363338,0.00027096,2]
[324937201,1714443039767,-427.69020912,0.00027101,2]
[324937204,1714443039777,-620.1858182,0.00027328,2]
[324937206,1714443039787,-158.18363338,0.00027328,2]
[324937207,1714443039796,-166.666666,0.00027397,2]
[324937209,1714443039806,-975.77635024,0.000274,2]
[324937212,1714443039815,-154.78330338,0.000274,2]
[324937213,1714443039825,-155.17015192,0.00027449,2]
[324937216,1714443039835,-31302.58393277,0.000275,2]
[324937217,1714443039844,-153.93008245,0.0002752,2]
[324937220,1714443039854,-158.18363338,0.00027525,2]
[324937222,1714443039866,-28917.97732909,0.0002763,2]
[324937224,1714443039876,-150.0,0.00027899,2]
[324937226,1714443039886,-13512.53,0.0002793,3]
[324937228,1714443039897,-1993.15361299,0.00027938,2]
[324937230,1714443039912,-16215.04,0.0002794,3]
[324937231,1714443039923,-19458.04,0.0002795,3]
[324937233,1714443039934,-156.38107824,0.00027998,2]
[324937235,1714443039945,-605.56771519,0.00027998,2]
[324937237,1714443039957,-424.06118896,0.00028,2]
[324937239,1714443039967,-248664.07790498,0.00028,4]
[324937241,1714443039978,-166.666666,0.00028038,2]
[324937243,1714443039988,-2518.6711,0.00028172,30]
[324937245,1714443039998,-1993.15361299,0.00028414,2]
[324937247,1714443040009,-158.18363338,0.00028429,2]
[324937249,1714443040018,-427.69020912,0.00028493,2]
[324937251,1714443040028,-352.359642,0.00028493,2]
[324937253,1714443040038,-166.666666,0.00028679,2]
[324937255,1714443040047,-32191.40239437,0.0002877,2]
[324937258,1714443040059,-6323.53601371,0.0002877,2]
[324937372,1714443044047,-1448.27914567,0.0002792,3]
[324937373,1714443044059,-781.5725001,0.0002792,3]
[324937397,1714444027231,-155.2343906,0.00019998,2]
[324937398,1714444027254,-300.0,0.00019998,2]
[324937399,1714444027277,-300.0,0.00019998,2]
[324937400,1714444027298,-1940.23839539,0.00019999,2]
[324937402,1714444049104,-2047.75242045,0.00019999,2]
[324937457,1714444232146,-550.76624806,0.000189,2]
[324937459,1714444232156,-105.23375194,0.00019899,2]
[324937541,1714444239660,-55.40478368,0.00019899,2]
[324937542,1714444239670,-19740.84330749,0.00019999,2]
[324937544,1714444239679,-2694.8338424,0.00021505,2]
[324937546,1714444239688,-314.55882,0.00022466,2]
[324937548,1714444239698,-550.76624806,0.000239,2]
[324937550,1714444239706,-496.72828562,0.000249,2]
[324937552,1714444239716,-2749.83727971,0.00025,2]
[324937554,1714444239727,-2250.16272029,0.00025,2]
[324937556,1714444239736,-154.78330338,0.00025,2]
[324937558,1714444239746,-155.17015192,0.00025355,2]
[324937560,1714444239755,-160.1793863,0.00025451,2]
[324937562,1714444239764,-153.93008245,0.00025776,2]
[324937564,1714444239773,-153.93008245,0.00025879,2]
[324937566,1714444239782,-152.59863383,0.00026062,2]
[324937766,1714445227150,-1671.13493796,0.00020911,2]
[324938068,1714445479043,547.40756288,0.00014,2]
[324938069,1714445479063,157.79359164,0.00014,2]
[324938078,1714446207670,154.79876161,9.999e-05,2]
[324938079,1714446438102,-154.79876161,0.00018838,2]
[324938080,1714446438123,-238.0,0.00018838,2]
[324938081,1714446438145,-1505.53358425,0.00018839,2]
[324938131,1714446638551,-160.12482,0.00018675,2]
[324938133,1714446638564,-2807.5535999,0.00018837,2]
[324938134,1714446638578,-190.40247678,0.00018838,2]
[324938135,1714446638590,-15847.01432185,0.00018839,2]
[324938136,1714446638601,-391.92360255,0.00018839,2]
[324938137,1714446638612,-301.45323509,0.000189,2]
[324938138,1714446638623,-178.3433162,0.0001895,2]
[324938139,1714446638634,-157.79359164,0.00019667,2]
[324938140,1714446638646,-293.09805044,0.00019667,2]
[324938141,1714446638657,-156.38107824,0.00019767,2]
[324938142,1714446638668,-605.56771519,0.00019767,2]
[324938143,1714446638680,-2620.32987504,0.0002,5]
[324938144,1714446638692,-1982.20019782,0.0002091,2]
[324938145,1714446638703,-1564.25196696,0.00020911,2]
[324938146,1714446638715,-245.16610713,0.00020911,2]
[324938147,1714446638727,-10598.56422738,0.00020911,2]
[324938148,1714446638739,-889.80355691,0.00020912,2]
[324938149,1714446638751,-1896.72037194,0.00020912,2]
[324938150,1714446638763,-207.39119472,0.00020913,2]
[324938151,1714446638775,-1003.47178488,0.00020913,2]
[324938152,1714446638786,-1504.4431837,0.00020913,2]
[324938153,1714446638797,-184.49449,0.00022466,2]
[324938154,1714446638808,-317.123677,0.00022466,2]
[324938155,1714446638821,-293.0980504,0.00022792,2]
[324938156,1714446638832,-301.45323509,0.000239,2]
[324938157,1714446638844,-693.45686249,0.00024,2]
[324938158,1714446638855,-152.7987176,0.00024932,2]
[324938159,1714446638866,-262.35852989,0.00025,2]
[324938160,1714446638879,-1218.854417,0.00025,2]
[324938161,1714446638890,-586.80351731,0.00025,2]
[324938162,1714446638901,-356.4085076,0.00025532,2]
[324938163,1714446638915,-154.16504668,0.00025817,2]
[324938164,1714446638926,-149.999999,0.00025879,3]
[324938165,1714446638937,-293.0980504,0.00025917,2]
[324938166,1714446638949,-356.4085076,0.00025939,2]
[324938167,1714446638960,-756.81853789,0.00026062,2]
[324938168,1714446638970,-154.16504668,0.00026171,2]
[324938169,1714446638982,-1520.518128,0.000262,2]
[324938170,1714446638994,-154.16504668,0.00026444,2]
[324938171,1714446639006,-154.16504668,0.00026507,2]
[324938172,1714446639018,-150.0,0.00026696,3]
[324938173,1714446639030,-1000.0,0.000267,2]
[324938174,1714446639040,-155.17015192,0.00026829,2]
[324938175,1714446639052,-356.4085076,0.00026888,2]
[324938176,1714446639063,-8529.21181525,0.00027,2]
[324938177,1714446639074,-153.93008245,0.00027168,2]
[324938178,1714446639086,-1000.0,0.000272,2]
[324938179,1714446639098,-757.49739273,0.0002733,2]
[324938180,1714446639108,-166.666666,0.00027397,2]
[324938181,1714446639120,-154.16504668,0.00027401,2]
[324938182,1714446639131,-356.4085076,0.00027404,2]
[324938183,1714446639141,-154.16504668,0.00027416,2]
[324938184,1714446639152,-719.35552867,0.0002753,2]
[324938185,1714446639163,-2024.25841785,0.00027598,2]
[324938186,1714446639175,-154.16504668,0.00027604,2]
[324938187,1714446639186,-13744.22,0.0002761,3]
[324938188,1714446639198,-111715.27113609,0.0002763,2]
[324938189,1714446639210,-151.0,0.0002763,2]
[324938190,1714446639221,-151.0,0.0002763,2]
[324938191,1714446639232,-151.697529,0.0002763,2]
[324938192,1714446639244,-570.761815,0.0002763,2]
[324938193,1714446639255,-570.761815,0.0002763,2]
[324938194,1714446639267,-158.18363338,0.00027688,2]
[324938195,1714446639278,-1000.0,0.000277,2]
[324938196,1714446639289,-150.0,0.00027817,2]
[324938197,1714446639300,-153.93008245,0.00027844,2]
[324938198,1714446639311,-197.55260181,0.0002792,2]
[324938199,1714446639322,-224.46080318,0.0002792,2]
[324938200,1714446639331,-424.06118896,0.00028,2]
[324938201,1714446639340,-161295.21057332,0.00028,4]
[324938202,1714446639535,-151.0,0.00028,2]
[324938203,1714446639548,-157.280179,0.00028,2]
[324938204,1714446639558,-151.0,0.00028,2]
[324938205,1714446639567,-328.143735,0.00028,2]
[324938206,1714446639579,-328.143735,0.00028,2]
[324938207,1714446639588,-151.0,0.00028,2]
[324938208,1714446639598,-151.001391,0.00028,2]
[324938209,1714446639607,-289.43784,0.00028,2]
[324938210,1714446639616,-289.43784,0.00028,2]
[324938211,1714446639625,-151.981463,0.00028,2]
[324938212,1714446639634,-151.0,0.00028,2]
[324938213,1714446639643,-842.698217,0.00028,2]
[324938214,1714446639653,-842.698217,0.00028,2]
[324938215,1714446639662,-151.0,0.00028,2]
[324938216,1714446639671,-1076.343195,0.00028,2]
[324938217,1714446639680,-1076.343195,0.00028,2]
[324938218,1714446639689,-167.431856,0.00028,2]
[324938219,1714446639698,-167.431856,0.00028,2]
[324938220,1714446639707,-151.0,0.00028,2]
[324938221,1714446639715,-151.0,0.00028,2]
[324938222,1714446639724,-151.0,0.00028,2]
[324938223,1714446639733,-570.761815,0.00028,2]
[324938224,1714446639742,-570.761815,0.00028,2]
[324938225,1714446639751,-166.666666,0.00028038,2]
[324938226,1714446639760,-2024.25841782,0.00028149,2]
[324938227,1714446639769,-2518.6711,0.00028178,30]
[324938228,1714446639778,-1000.0,0.000282,2]
[324938229,1714446639787,-158.18363338,0.00028286,2]
[324938230,1714446639796,-356.4085076,0.0002835,2]
[324938231,1714446639805,-620.1858182,0.00028381,2]
[324938232,1714446639815,-152.7987176,0.0002843,2]
[324938233,1714446639825,-155.17015192,0.00028468,2]
[324938234,1714446639834,-314.55882,0.00028493,2]
[324938235,1714446639843,-184.49449,0.00028493,2]
[324938236,1714446639853,-317.123677,0.00028493,2]
[324938237,1714446639862,-588.0,0.000285,2]
[324938238,1714446639871,-158.18363338,0.00028555,2]
[324938239,1714446639880,-151.0,0.0002867,2]
[324938240,1714446639889,-151.386942,0.0002867,2]
[324938241,1714446639899,-570.761815,0.0002867,2]
[324938242,1714446639909,-570.761815,0.0002867,2]
[324938243,1714446639921,-794.491991,0.0002867,2]
[324938244,1714446639931,-151.0,0.0002867,2]
[324938245,1714446639939,-794.491991,0.0002867,2]
[324938246,1714446639949,-44444.0,0.0002867,3]
[324938247,1714446639959,-166.666666,0.00028679,2]
[324938248,1714446639968,-2024.25841782,0.00028699,2]
[324938249,1714446639977,-287.0,0.000287,2]
[324938250,1714446639986,-150.320406,0.000287,2]
[324938251,1714446639996,-1000.0,0.000287,2]
[324938252,1714446640005,-159.94840822,0.00028768,2]
[324938253,1714446640014,-6298.14911602,0.00028768,2]
[324938254,1714446640023,-155.2695154,0.00028768,2]
[324938255,1714446640032,-155.08820925,0.00028768,2]
[324938256,1714446640041,-3517.0839906,0.00028769,2]
[324938257,1714446640051,-4254.95461644,0.00028769,2]
[324938258,1714446640061,-152.579304,0.00028769,2]
[324938259,1714446640071,-151.0,0.00028769,2]
[324938260,1714446640080,-328.143735,0.00028769,2]
[324938261,1714446640089,-328.143735,0.00028769,2]
[324938262,1714446640099,-151.0,0.00028769,2]
[324938263,1714446640108,-151.0,0.00028769,2]
[324938264,1714446640117,-154.295428,0.00028769,2]
[324938265,1714446640126,-151.0,0.00028769,2]
[324938266,1714446640135,-198.916331,0.00028769,2]
[324938268,1714446640143,-151.0,0.00028769,2]
[324938270,1714446640154,-289.43784,0.00028769,2]
[324938273,1714446640164,-289.43784,0.00028769,2]
[324938275,1714446640174,-151.0,0.00028769,2]
[324938277,1714446640183,-842.698217,0.00028769,2]
[324938278,1714446640193,-842.698217,0.00028769,2]
[324938279,1714446640205,-151.0,0.00028769,2]
[324938281,1714446640215,-1076.343195,0.00028769,2]
[324938282,1714446640224,-1076.343195,0.00028769,2]
[324938284,1714446640234,-167.431856,0.00028769,2]
[324938286,1714446640242,-167.431856,0.00028769,2]
[324938288,1714446640251,-151.0,0.00028769,2]
[324938290,1714446640260,-151.0,0.00028769,2]
[324938292,1714446640270,-570.761815,0.00028769,2]
[324938294,1714446640279,-570.761815,0.00028769,2]
[324938296,1714446640288,-794.491991,0.00028769,2]
[324938298,1714446640297,-290.40073,0.00028769,2]
[324938300,1714446640306,-794.491991,0.00028769,2]
[324938302,1714446640315,-34744.97031605,0.0002877,7]
[324938304,1714446640325,-1690.92393074,0.0002877,2]
[324938309,1714446640356,-22667.44120463,0.0002877,2]
[324938364,1714446644362,-0.97054481,0.0002876,3]
[324938404,1714447560525,300.0,0.00014728,2]
[324938405,1714447626158,-250.0,0.00019912,2]
[324938406,1714447626179,-1342.82687775,0.0002,2]
[324938407,1714447626200,-300.0,0.00020911,2]
[324938408,1714447626223,-155.08820925,0.00020912,2]
[324938409,1714447626243,-1544.40634874,0.00020912,2]
[324938432,1714447838718,-150.0,0.000189,2]
[324938434,1714447838728,-306.05605612,0.00020812,2]
[324938436,1714447838737,-23.58438265,0.00020912,2]
[324938673,1714447844237,-735.75683063,0.00020912,2]
[324938681,1714448838128,-150.0,0.000189,2]
[324938682,1714448838150,-1521.13493796,0.0001987,2]
[324938809,1714449038930,-157.79359164,0.00019866,2]
[324938811,1714449038940,-3020.00640836,0.0001987,2]
[324938848,1714449046852,-787.08145436,0.0001987,2]
[324938858,1714450026108,-238.0,0.00018625,2]
[324938859,1714450026132,-1818.1259375,0.00018626,2]
[324938861,1714450156115,-548.37810769,0.00018626,2]
[324938900,1714450231904,-1083.33243758,0.00018626,2]
[324938935,1714450237930,-14520.50935564,0.00018626,2]
[324938940,1714450237988,-40.72895949,0.00018626,2]
[324938942,1714450237998,-757.49739273,0.00018874,2]
[324938944,1714450238009,-184.07316105,0.000189,2]
[324938945,1714450238018,-303.81645991,0.00019867,2]
[324938947,1714450238028,-154.79876161,0.00019867,2]
[324938949,1714450238039,-536.62251102,0.00019868,2]
[324938951,1714450238050,-500.86,0.00019868,2]
[324938953,1714450238060,-29412.77864906,0.00019869,2]
[324938955,1714450238069,-1458.73300009,0.0001987,2]
[324938957,1714450238079,-17571.57184047,0.0002,2]
[324938959,1714450238088,-490.88,0.00020902,3]
[324938961,1714450238098,-245.44,0.00020902,3]
[324938963,1714450238107,-736.32,0.00020902,3]
[324938965,1714450238117,-155.2343906,0.00020912,2]
[324938967,1714450238127,-1671.13493796,0.00020912,2]
[324938970,1714450238137,-29924.37365258,0.00020912,2]
[324938973,1714450238146,-1054.1019421,0.00020912,2]
[324938976,1714450238155,-1564.25196696,0.00020912,2]
[324938979,1714450238165,-155.2695154,0.00020913,2]
[324938981,1714450238175,-6298.14911602,0.00020913,2]
[324938983,1714450238184,-224.46080318,0.00022,2]
[324938985,1714450238194,-981.76,0.00022272,3]
[324938987,1714450238204,-490.88,0.00022272,3]
[324938989,1714450238214,-166.045041,0.00022466,2]
[324938991,1714450238223,-285.411309,0.00022466,2]
[324938993,1714450238233,-314.558827,0.00022466,2]
[324938995,1714450238242,-283.102938,0.00022466,2]
[324938997,1714450238251,-163.235402,0.00022466,2]
[324938999,1714450238262,-167.48467805,0.00023,5]
[324939001,1714450238272,-184.07316105,0.000239,2]
[324939003,1714450238281,-693.45686249,0.00024,2]
[324939005,1714450238289,-152.7987176,0.00024831,2]
[324939006,1714450238298,-159.94840822,0.00025,2]
[324939008,1714450238307,-2754.64665353,0.00025,2]
[324939010,1714450238316,-5398.98860227,0.00025,2]
[324939012,1714450238325,-152.7987176,0.00025016,2]
[324939014,1714450238334,-152.7987176,0.00025253,2]
[324939016,1714450238344,-158.18363338,0.00025745,2]
[324939018,1714450238353,-320.76765684,0.00026015,2]
[324939020,1714450238363,-320.76765684,0.00026484,2]
[324939022,1714450238372,-154.16504668,0.00026514,2]
[324939024,1714450238381,-153.7722523,0.00026603,2]
[324939026,1714450238390,-153.0,0.00026603,2]
[324939028,1714450238400,-153.0,0.00026603,2]
[324939030,1714450238409,-153.0,0.00026603,2]
[324939032,1714450238418,-153.0,0.00026603,2]
[324939034,1714450238428,-153.0,0.00026603,2]
[324939036,1714450238437,-153.0,0.00026603,2]
[324939038,1714450238446,-4254.95461644,0.000269,2]
[324939040,1714450238456,-8529.21181525,0.00027,2]
[324939041,1714450238465,-151.0,0.00027,2]
[324939044,1714450238475,-150.0,0.00027037,2]
[324939045,1714450238484,-150.53295523,0.0002708,2]
[324939047,1714450238493,-158.0,0.0002716,8]
[324939049,1714450238504,-1000.0,0.000272,2]
[324939051,1714450238513,-155.17015192,0.00027267,2]
[324939054,1714450238523,-152.7987176,0.00027324,2]
[324939055,1714450238532,-2024.25841785,0.0002738,2]
[324939057,1714450238541,-166.666666,0.00027397,2]
[324939059,1714450238551,-154.79876161,0.000274,2]
[324939061,1714450238560,-975.77635024,0.000274,2]
[324939064,1714450238570,-18106.26,0.000274,3]
[324939066,1714450238579,-10111.54,0.0002741,3]
[324939067,1714450238589,-152.7987176,0.00027446,2]
[324939069,1714450238598,-289.43784,0.0002746,2]
[324939071,1714450238608,-289.43784,0.0002746,2]
[324939073,1714450238618,-151.981463,0.0002746,2]
[324939075,1714450238627,-151.0,0.0002746,2]
[324939077,1714450238637,-842.698217,0.0002746,2]
[324939079,1714450238646,-842.698217,0.0002746,2]
[324939081,1714450238656,-151.0,0.0002748,2]
[324939083,1714450238665,-151.0,0.0002748,2]
[324939085,1714450238675,-151.0,0.0002748,2]
[324939087,1714450238684,-151.0,0.0002748,2]
[324939089,1714450238693,-167.431856,0.0002748,2]
[324939091,1714450238702,-167.431856,0.0002748,2]
[324939093,1714450238711,-151.0,0.0002748,2]
[324939095,1714450238720,-151.214711,0.0002749,2]
[324939097,1714450238730,-151.0,0.0002749,2]
[324939099,1714450238739,-151.0,0.0002749,2]